[Event "41st Amateur D7"]
[Site "ChessGUI4"]
[Date "2013.07.06"]
[Round "14.3"]
[White "Butcher 1.64 64-bit"]
[Black "Shallow 1.0 64-bit"]
[Result "1-0"]
[BlackElo "2200"]
[ECO "D15"]
[EventDate "2013.??.??"]
[TimeControl "40/1500:40/1500:40/1500"]
[WhiteElo "2355"]

{ i5 Quad } 1.d4 { [%eval 0,1] [%emt 0:00:00] } 1...c6
{ [%eval 0,1] [%emt 0:00:00] } 2.c4 { [%eval 0,1] [%emt 0:00:00] } 2...d5
{ [%eval 0,1] [%emt 0:00:00] } 3.Nf3 { [%eval 0,1] [%emt 0:00:00] } 3...Nf6
{ [%eval 0,1] [%emt 0:00:00] } 4.Nc3 { [%eval 0, 1] [%emt 0:00:00] } 4...a6
{ [%eval 0,1] [%emt 0:00:00] } 5.e3 { [%eval 0,1] [%emt 0: 00:00] } 5...b5
{ [%eval 0,1] [%emt 0:00:00] } 6.c5 { [%eval 0,1] [%emt 0:00:00] } 6...g6
{ [%eval 0,1] [%emt 0:00:00] } 7.Ne5 { [%eval 0,1] [%emt 0:00:00] } 7...Bg7
{ [%eval 0, 1] [%emt 0:00:00] } 8.Be2 { [%eval 0,1] [%emt 0:00:00] } 8...O-O
{ [%eval 0,1] [%emt 0:00:00] } 9.O-O { [%eval 10,11] [%emt 0:00:54] }
9...Nfd7 { [%eval -12,14] [%emt 0: 00:42] (d5e4) } 10.f4
{ [%eval 11,11] [%emt 0:01:00] (f4) } 10...Nxe5
{ [%eval -13,14] [%emt 0:00:42] (e6) } 11.fxe5
{ [%eval 38,11] [%emt 0:00:58] (fxe5) } 11...b4
{ [%eval -22,15] [%emt 0:00:42] (f6) } 12.Na4
{ [%eval 66,13] [%emt 0:00:57] (Na4) } 12...Nd7
{ [%eval -19,14] [%emt 0:00:42] (Nd7) } 13.Bd2
{ [%eval 80,12] [%emt 0:01: 05] (Bd3) } 13...a5
{ [%eval -24,15] [%emt 0:00:43] (a5) } 14.a3
{ [%eval 83,12] [%emt 0:01:04] (a3) } 14...bxa3
{ [%eval -26,15] [%emt 0:00:42] (bxa3) } 15.Rxa3
{ [%eval 83, 12] [%emt 0:01:02] (bxa3) } 15...Ba6
{ [%eval -59,13] [%emt 0:00:42] (e6) } 16.Nc3
{ [%eval 92,12] [%emt 0:01:02] (Nc3) } 16...Bb7
{ [%eval -85,13] [%emt 0:00:42] (Bxe2) } 17.e4
{ [%eval 111,11] [%emt 0:00:53] (Qb3) } 17...e6
{ [%eval -61,13] [%emt 0:00:42] (e6) } 18.exd5
{ [%eval 110,10] [%emt 0:01:00] (exd5) } 18...exd5
{ [%eval -67,12] [%emt 0:00:42] (exd5) } 19.Bg4
{ [%eval 125,10] [%emt 0:00:59] (Na2) } 19...f6
{ [%eval -51,12] [%emt 0:00:42] (h5) } 20.Na4
{ [%eval 106,10] [%emt 0:00:58] (Na4) } 20...f5
{ [%eval -65,13] [%emt 0:00:42] (fxe5) } 21.Be2
{ [%eval 167,11] [%emt 0:00:48] (Bf3) } 21...Ra7
{ [%eval -68,12] [%emt 0:00:42] (Qh4) } 22.Qe1
{ [%eval 179, 11] [%emt 0:00:48] (Nc3) } 22...Re8
{ [%eval -77,12] [%emt 0:00:42] (Re8) } 23.Nc3
{ [%eval 211,11] [%emt 0:00:48] (Nc3) } 23...Qb8
{ [%eval -78,12] [%emt 0:00:42] (Ba6) } 24.Nd1
{ [%eval 209,11] [%emt 0:00:47] (Qh4) } 24...Nxc5
{ [%eval -72,14] [%emt 0:01: 08] (a4) } 25.dxc5
{ [%eval 235,11] [%emt 0:00:44] (dxc5) } 25...Bxe5
{ [%eval -57,13] [%emt 0:00:41] (Bxe5) } 26.Kh1
{ [%eval 206,11] [%emt 0:00:45] (Kh1) } 26...Bxh2
{ [%eval -45,13] [%emt 0:00:41] (Bxh2) } 27.Qf2
{ [%eval 199,10] [%emt 0:00:45] (Bxa5) } 27...Bc7
{ [%eval -8,12] [%emt 0:00:41] (a4) } 28.Re1
{ [%eval 208,10] [%emt 0:00:44] (Bf3) } 28...Re4
{ [%eval -3,12] [%emt 0:00:41] (Be5) } 29.Rf3
{ [%eval 178, 11] [%emt 0:00:42] (Rh3) } 29...Qe8
{ [%eval -5,12] [%emt 0:00:41] (Qd8) } 30.Nc3
{ [%eval 195,11] [%emt 0:00:42] (Nc3) } 30...Re6
{ [%eval -3,12] [%emt 0:00:41] (Re6) } 31.Bd3
{ [%eval 200,10] [%emt 0:00:40] (Bc1) } 31...Rxe1+
{ [%eval -4,12] [%emt 0:00: 41] (Rxe1) } 32.Bxe1
{ [%eval 191,11] [%emt 0:00:39] (Bxe1) } 32...Ra8
{ [%eval -6,11] [%emt 0:00:41] (Ra8) } 33.Ne2
{ [%eval 205,11] [%emt 0:00:30] (Re3) } 33...Qe5
{ [%eval -17,12] [%emt 0:00:41] (Qe5) } 34.Rh3
{ [%eval 196,11] [%emt 0:00:32] (Nf4) } 34...Re8
{ [%eval -9,13] [%emt 0:00:41] (Re8) } 35.Bc3
{ [%eval 180,11] [%emt 0:00:30] (Bc3) } 35...Qe7
{ [%eval -61,13] [%emt 0:00:41] (Qe7) } 36.Bd4
{ [%eval 179, 10] [%emt 0:00:24] (Nf4) } 36...Qg5
{ [%eval 6,13] [%emt 0:00:41] (Qg5) } 37.Be3
{ [%eval 195,11] [%emt 0:00:25] (Kg1) } 37...Qg4
{ [%eval 0,13] [%emt 0:00:40] (Qg4) } 38.Rf3
{ [%eval 193,10] [%emt 0:00:23] (Bd4) } 38...Be5
{ [%eval 10,12] [%emt 0:00:41] (Qh5) } 39.Bd4
{ [%eval 165,11] [%emt 0:00:21] (Bh6) } 39...Qh5+
{ [%eval 7,13] [%emt 0:00:41] (Qh5) } 40.Rh3
{ [%eval 163,13] [%emt 0:00:18] (Rh3) } 40...Bxd4
{ [%eval 1, 13] [%emt 0:00:41] (Bxd4) } 41.Qxd4
{ [%eval 162,13] [%emt 0:00:50] (Nxd4) } 41...Qg5
{ [%eval -49,13] [%emt 0:00:37] (Qg4) } 42.Qf2
{ [%eval 152,11] [%emt 0:00:49] (Qc3) } 42...Bc8
{ [%eval 10,12] [%emt 0:00:37] (Bc8) } 43.Ng1
{ [%eval 109,12] [%emt 0:00:48] (Kg1) } 43...Bd7
{ [%eval 18,13] [%emt 0:00:37] (f4) } 44.Qd4
{ [%eval 141,12] [%emt 0:00:48] (Qd4) } 44...Re1
{ [%eval 14,13] [%emt 0:00:37] (Qg4) } 45.Kh2
{ [%eval 140,12] [%emt 0:00:48] (Kh2) } 45...Re7
{ [%eval 14,12] [%emt 0:00:37] (Qd8) } 46.Nf3
{ [%eval 137,12] [%emt 0:00:53] (Nf3) } 46...Qe3
{ [%eval 7,13] [%emt 0:00:37] (Qe3) } 47.Rh4
{ [%eval 131,12] [%emt 0:00:51] (Qc3) } 47...Qxd4
{ [%eval 3,14] [%emt 0:00:37] (Qxd4) } 48.Rxd4
{ [%eval 125,14] [%emt 0:00:51] (Rxd4) } 48...Re3
{ [%eval -7,14] [%emt 0:00:37] (Be8) } 49.Kg3
{ [%eval 124,13] [%emt 0:00:51] (Kg3) } 49...Kf8
{ [%eval -17,15] [%emt 0:00:37] (Kf8) } 50.Kf2
{ [%eval 126,13] [%emt 0:00:50] (Kf2) } 50...Re8
{ [%eval -18,15] [%emt 0:00:37] (Re8) } 51.Be2
{ [%eval 124,13] [%emt 0:00:49] (Ra4) } 51...Rb8
{ [%eval -14,15] [%emt 0:00:37] (Ke7) } 52.Rd2
{ [%eval 118, 13] [%emt 0:00:48] (Ra4) } 52...Ke7
{ [%eval 6,14] [%emt 0:00:37] (Ke7) } 53.Ke3
{ [%eval 115,12] [%emt 0:00:47] (Rd3) } 53...Kf6
{ [%eval 12,13] [%emt 0:00:37] (a4) } 54.Nd4
{ [%eval 87,13] [%emt 0:00:41] (Nd4) } 54...Re8+
{ [%eval 6,13] [%emt 0:00:37] (a4) } 55.Kd3
{ [%eval 101,13] [%emt 0:00:40] (Kd3) } 55...h6
{ [%eval -8,14] [%emt 0: 00:37] (f4) } 56.Bd1
{ [%eval 143,13] [%emt 0:00:40] (b3) } 56...g5
{ [%eval 0,13] [%emt 0:00:37] (g5) } 57.Ba4
{ [%eval 142,13] [%emt 0:00:34] (g3) } 57...Rc8
{ [%eval -15,14] [%emt 0:00:37] (Rc8) } 58.Nb3
{ [%eval 123,13] [%emt 0:00:40] (b4) } 58...Ra8
{ [%eval -7,15] [%emt 0:00:37] (Ra8) } 59.Nd4
{ [%eval 123,13] [%emt 0:00:39] (Nd4) } 59...Rc8
{ [%eval -13,15] [%emt 0:00:37] (Rc8) } 60.Nb3
{ [%eval 124,12] [%emt 0:00:38] (b4) } 60...Ra8
{ [%eval 0,16] [%emt 0:00:37] (Ra8) } 61.Re2
{ [%eval 123,13] [%emt 0:00:38] (Nd4) } 61...f4
{ [%eval 3,15] [%emt 0:00:37] (f4) } 62.Nd4
{ [%eval 110,13] [%emt 0:00:37] (Nd4) } 62...Ra6
{ [%eval 1,14] [%emt 0:00:37] (Rc8) } 63.Nf3
{ [%eval 165,13] [%emt 0:00:37] (Rf2) } 63...Bg4
{ [%eval -126,14] [%emt 0:00:59] (Bg4) } 64.Re8
{ [%eval 157,14] [%emt 0:00:55] (Re8) } 64...Ra7
{ [%eval -132,14] [%emt 0:00: 36] (Bxf3) } 65.Nd4
{ [%eval 286,12] [%emt 0:00:30] (Nd4) } 65...Bd7
{ [%eval -134,14] [%emt 0:00:36] (Bd7) } 66.Rd8
{ [%eval 315,12] [%emt 0:00:33] (Rd8) } 66...Rb7
{ [%eval -137,13] [%emt 0:00:36] (Rb7) } 67.Kc3
{ [%eval 250,13] [%emt 0:00:56] (Nxc6) } 67...Kg7
{ [%eval -224,14] [%emt 0:00:36] (Kg7) } 68.Bxc6
{ [%eval 229,12] [%emt 0:00:31] (Ra8) } 68...Bxc6
{ [%eval -213,14] [%emt 0:00:36] (Bxc6) } 69.Nxc6
{ [%eval 236,13] [%emt 0:00:30] (Nxc6) } 69...Rc7
{ [%eval -220,15] [%emt 0:00:36] (Rc7) } 70.Rd6
{ [%eval 229,13] [%emt 0:00:26] (Rd6) } 70...a4
{ [%eval -216,14] [%emt 0:00: 36] (g4) } 71.Kd3
{ [%eval 249,13] [%emt 0:00:27] (b4) } 71...Kh7
{ [%eval -242,14] [%emt 0:00:36] (Kh7) } 72.Re6
{ [%eval 362,12] [%emt 0:00:26] (Re6) } 72...Rf7
{ [%eval -252,14] [%emt 0:00:36] (Rg7) } 73.Ne5
{ [%eval 470,12] [%emt 0:00:25] (Ne5) } 73...Rf8
{ [%eval -264,13] [%emt 0:00:36] (Rb7) } 74.Re7+
{ [%eval 574,12] [%emt 0:00:22] (c6) } 74...Kg8
{ [%eval -492,14] [%emt 0:00:36] (Kg8) } 75.c6
{ [%eval 576,13] [%emt 0:00:22] (c6) } 75...a3
{ [%eval -510,13] [%emt 0:00:43] (Rc8) } 76.bxa3
{ [%eval 809,13] [%emt 0:00:20] (bxa3) } 76...Ra8
{ [%eval -659,12] [%emt 0: 00:35] (f3) } 77.c7
{ [%eval 880,12] [%emt 0:00:19] (c7) } 77...Rc8
{ [%eval -827,12] [%emt 0:00:35] (Rc8) } 1-0

[Event "41st Amateur D7"]
[Site "ChessGUI4"]
[Date "2013.07.06"]
[Round "14.4"]
[White "Gibbon 2.57a 64-bit"]
[Black "MadChess 1.2"]
[Result "0-1"]
[BlackElo "2200"]
[ECO "D86"]
[EventDate "2013.??.??"]
[TimeControl "40/1500:40/1500:40/1500"]
[WhiteElo "2251"]

{ i5 Quad } 1.d4 { [%eval 0,1] [%emt 0:00:00] } 1...Nf6
{ [%eval 0,1] [%emt 0:00:00] } 2.c4 { [%eval 0,1] [%emt 0:00:00] } 2...g6
{ [%eval 0,1] [%emt 0:00:00] } 3.Nc3 { [%eval 0,1] [%emt 0:00:00] } 3...d5
{ [%eval 0,1] [%emt 0:00:00] } 4.cxd5 { [%eval 0, 1] [%emt 0:00:00] }
4...Nxd5 { [%eval 0,1] [%emt 0:00:00] } 5.e4 { [%eval 0,1] [%emt 0:00:00] }
5...Nxc3 { [%eval 0,1] [%emt 0:00:00] } 6.bxc3 { [%eval 0,1] [%emt 0:00:00] }
6...Bg7 { [%eval 0,1] [%emt 0:00:00] } 7.Bc4 { [%eval 0,1] [%emt 0:00:00] }
7...c5 { [%eval 0,1] [%emt 0:00:00] } 8.Ne2 { [%eval 0,1] [%emt 0:00:00] }
8...Nc6 { [%eval 0, 1] [%emt 0:00:00] } 9.d5 { [%eval 3,13] [%emt 0:01:49] }
9...Ne5 { [%eval 8,12] [%emt 0:00:35] (Ne5) } 10.Bb5+
{ [%eval 7,13] [%emt 0:00:36] (Bb5) } 10...Bd7
{ [%eval 34,11] [%emt 0:00:23] (Bd7) } 11.Bxd7+
{ [%eval -2,14] [%emt 0:00:59] (Bxd7) } 11...Qxd7
{ [%eval 29,11] [%emt 0:00:27] (Qxd7) } 12.O-O
{ [%eval -6,14] [%emt 0:01:28] (O-O) } 12...O-O
{ [%eval 15,11] [%emt 0:01:20] (O-O) } 13.Rb1
{ [%eval -3,12] [%emt 0: 00:23] (Bf4) } 13...a6
{ [%eval 1,10] [%emt 0:01:07] (b6) } 14.Be3
{ [%eval 0,13] [%emt 0:00:51] (a4) } 14...Rfc8
{ [%eval 26,11] [%emt 0:00:41] (Qc7) } 15.Kh1
{ [%eval 5,13] [%emt 0:01:06] (a4) } 15...Nc4
{ [%eval 56,11] [%emt 0:00:56] (b5) } 16.Bg5
{ [%eval 6,13] [%emt 0:00:26] (a4) } 16...h6
{ [%eval 77,11] [%emt 0:00:34] (Re8) } 17.Bf4
{ [%eval 10,13] [%emt 0:00:14] (Bf4) } 17...g5
{ [%eval 77,11] [%emt 0:00:23] (b5) } 18.Bg3
{ [%eval 13,14] [%emt 0:00:47] (Bg3) } 18...Ra7
{ [%eval 71,11] [%emt 0: 00:54] (b5) } 19.Re1
{ [%eval 10,13] [%emt 0:00:23] (Kg1) } 19...b5
{ [%eval 66,10] [%emt 0:00:25] (b6) } 20.Qd3
{ [%eval 0,12] [%emt 0:00:17] (Qd3) } 20...Na3
{ [%eval 64,10] [%emt 0:00:26] (Qd8) } 21.Rb2
{ [%eval 14,12] [%emt 0:00:12] (Ra1) } 21...Qd8
{ [%eval 70,10] [%emt 0:01:08] (Rd8) } 22.f3
{ [%eval -4,13] [%emt 0:00:47] (f4) } 22...Rd7
{ [%eval 105,11] [%emt 0:00:52] (Nc4) } 23.Rd1
{ [%eval -31,12] [%emt 0:00: 11] (Kg1) } 23...e6
{ [%eval 102,10] [%emt 0:00:23] (Qa5) } 24.f4
{ [%eval -65,13] [%emt 0:00:48] (Kg1) } 24...Qa5
{ [%eval 107,9] [%emt 0:00:22] (Qa5) } 25.fxg5
{ [%eval -68,12] [%emt 0:00:27] (Qf3) } 25...hxg5
{ [%eval 141,11] [%emt 0:00:29] (hxg5) } 26.Ng1
{ [%eval -75,12] [%emt 0:00:10] (Qf3) } 26...Rcd8
{ [%eval 205,11] [%emt 0: 00:55] (Rcd8) } 27.Be1
{ [%eval -61,12] [%emt 0:00:10] (Qf3) } 27...Qa4
{ [%eval 187, 10] [%emt 0:00:27] (Qa4) } 28.Re2
{ [%eval -74,13] [%emt 0:00:22] (Re2) } 28...Nc4
{ [%eval 172,11] [%emt 0:00:45] (Nc4) } 29.Nh3
{ [%eval -69,13] [%emt 0:00:24] (Nh3) } 29...f6
{ [%eval 139,10] [%emt 0:00:25] (g4) } 30.Bg3
{ [%eval -35,12] [%emt 0: 00:30] (Bg3) } 30...exd5
{ [%eval 139,12] [%emt 0:00:42] (Nb6) } 31.exd5
{ [%eval -5, 13] [%emt 0:00:13] (exd5) } 31...Rxd5
{ [%eval 134,13] [%emt 0:00:27] (Rxd5) } 32.Qxd5+
{ [%eval -9,14] [%emt 0:00:17] (Qxd5) } 32...Rxd5
{ [%eval 127,15] [%emt 0:02:09] (Rxd5) } 33.Rxd5
{ [%eval 0,14] [%emt 0:00:27] (Rxd5) } 33...Qa3
{ [%eval 97,14] [%emt 0:01:47] (Qa3) } 34.Re7
{ [%eval -25,13] [%emt 0:00:20] (Nf2) } 34...Qc1+
{ [%eval 108, 12] [%emt 0:00:34] (Qc1) } 35.Ng1
{ [%eval 24,14] [%emt 0:00:09] (Ng1) } 35...Ne3
{ [%eval 92,14] [%emt 0:00:56] (Ne3) } 36.Rdd7
{ [%eval 9,14] [%emt 0:00:10] (Rdd7) } 36...Nf5
{ [%eval 85,13] [%emt 0:00:15] (Nf5) } 37.Re8+
{ [%eval -22,14] [%emt 0:00:15] (Re8) } 37...Kh7
{ [%eval 108,15] [%emt 0:01:08] (Kh7) } 38.Bf2
{ [%eval -32,14] [%emt 0:00:13] (Be1) } 38...Qxc3
{ [%eval 102,14] [%emt 0:01:25] (Qxc3) } 39.Re6
{ [%eval -56,14] [%emt 0:00:28] (g4) } 39...Kg6
{ [%eval 219,11] [%emt 0:00: 32] (Kg6) } 40.Rxa6
{ [%eval -59,13] [%emt 0:00:06] (Rxa6) } 40...Qc2
{ [%eval 239,11] [%emt 0:00:18] (Qc2) } 41.Be1
{ [%eval -77,14] [%emt 0:00:27] (Nh3) } 41...Qe4
{ [%eval 243,12] [%emt 0:01:18] (Bf8) } 42.Bf2
{ [%eval -89,14] [%emt 0:00:36] (Ba5) } 42...c4
{ [%eval 292,13] [%emt 0:00:47] (Bf8) } 43.Rd2
{ [%eval -106,14] [%emt 0:00:49] (Rb6) } 43...c3
{ [%eval 304,14] [%emt 0:01:05] (c3) } 44.Re2
{ [%eval -153, 16] [%emt 0:00:25] (Re2) } 44...Qc4
{ [%eval 326,14] [%emt 0:01:18] (Qc4) } 45.Rc2
{ [%eval -180,16] [%emt 0:01:27] (Re1) } 45...g4
{ [%eval 365,12] [%emt 0:00:53] (13) } 46.Ra3
{ [%eval -260,15] [%emt 0:00:55] (Ra3) } 46...b4
{ [%eval 396,15] [%emt 0:00: 57] (b4) } 47.Ra5
{ [%eval -291,16] [%emt 0:00:48] (Ra5) } 47...Bh6
{ [%eval 388,14] [%emt 0:01:19] (13) } 48.Rc5
{ [%eval -263,15] [%emt 0:00:13] (Rc5) } 48...Qd3
{ [%eval 393,14] [%emt 0:00:39] (Qd3) } 49.Re2
{ [%eval -275,15] [%emt 0:00:43] (Re2) } 49...Nd6
{ [%eval 396,13] [%emt 0:00:37] (Bd2) } 50.Rc6
{ [%eval -342,13] [%emt 0:00:22] (Rc6) } 50...Ne4
{ [%eval 455,13] [%emt 0:01:12] (Ne4) } 51.Bh4
{ [%eval -478,14] [%emt 0:00:27] (Bh4) } 51...Be3
{ [%eval 523,12] [%emt 0:00:21] (Kh5) } 52.Re6
{ [%eval -571,14] [%emt 0:00:36] (Re6) } 52...c2
{ [%eval 661,13] [%emt 0:00: 33] (c2) } 53.Rc6
{ [%eval -755,14] [%emt 0:00:23] (Rc6) } 53...c1=Q
{ [%eval 684,13] [%emt 0:00:30] (c1=Q) } 54.Rxc1
{ [%eval -892,15] [%emt 0:00:24] (Rxc1) } 54...Bxc1
{ [%eval 836,14] [%emt 0:00:27] (Bxc1) } 0-1

[Event "41st Amateur D7"]
[Site "ChessGUI4"]
[Date "2013.07.06"]
[Round "14.5"]
[White "Waxman 2011"]
[Black "ProChess 1.02AD"]
[Result "0-1"]
[BlackElo "2244"]
[ECO "A30"]
[EventDate "2013.??.??"]
[TimeControl "40/1500:40/1500:40/1500"]
[WhiteElo "2256"]

{ i5 Quad } 1.Nf3 { [%eval 0,1] [%emt 0:00:00] } 1...c5
{ [%eval 0,1] [%emt 0:00:00] } 2.c4 { [%eval 0,1] [%emt 0:00:00] } 2...g6
{ [%eval 0,1] [%emt 0:00:00] } 3.d4 { [%eval 0,1] [%emt 0:00:00] } 3...Bg7
{ [%eval 0,1] [%emt 0:00:00] } 4.e4 { [%eval 0,1] [%emt 0:00:00] } 4...d6
{ [%eval 0,1] [%emt 0:00:00] } 5.Nc3 { [%eval 0,1] [%emt 0:00: 00] } 5...Nc6
{ [%eval 0,1] [%emt 0:00:00] } 6.Be3 { [%eval 0,1] [%emt 0:00:00] } 6...Bg4
{ [%eval 0,1] [%emt 0:00:00] } 7.dxc5 { [%eval 0,1] [%emt 0:00:00] } 7...dxc5
{ [%eval 0,1] [%emt 0:00:00] } 8.Qxd8+ { [%eval 0,1] [%emt 0:00:00] }
8...Rxd8 { [%eval 0,1] [%emt 0:00:00] } 9.Nd2
{ [%eval -31,12] [%emt 0:00:45] } 9...Bd4
{ [%eval -22,12] [%emt 0:01:06] (Bxc3) } 10.Bxd4
{ [%eval -8,13] [%emt 0:00:25] (h3) } 10...cxd4
{ [%eval -7,14] [%emt 0:01:08] (Nxd4) } 11.Nd5
{ [%eval -11,12] [%emt 0:00:19] (Nd5) } 11...e6
{ [%eval -5,14] [%emt 0:11:22] (Rc8) } 12.Nc7+
{ [%eval -7,12] [%emt 0: 00:34] (h3) } 12...Kd7
{ [%eval 11,14] [%emt 0:00:39] (Kd7) } 13.Nb5
{ [%eval -4,13] [%emt 0:00:37] (Nb5) } 13...a6
{ [%eval 15,13] [%emt 0:01:01] (a6) } 14.f3
{ [%eval 2, 13] [%emt 0:00:45] (h3) } 14...Bh5
{ [%eval 17,13] [%emt 0:00:17] (axb5) } 15.Na3
{ [%eval 8,13] [%emt 0:00:44] (Na3) } 15...g5
{ [%eval 15,12] [%emt 0:00:14] (g5) } 16.Rd1
{ [%eval -5,12] [%emt 0:00:35] (c5) } 16...Nf6
{ [%eval 23,11] [%emt 0:00:27] (Kc8) } 17.h3
{ [%eval -26,12] [%emt 0:01:20] (c5) } 17...Bg6
{ [%eval 30,10] [%emt 0:00:17] (Ke7) } 18.Nb3
{ [%eval 6,13] [%emt 0:01:06] (Nc2) } 18...e5
{ [%eval 27,11] [%emt 0: 00:38] (Kc8) } 19.c5
{ [%eval 4,13] [%emt 0:01:05] (c5) } 19...h5
{ [%eval 22,10] [%emt 0:00:13] (Kc7) } 20.Nc4
{ [%eval 9,13] [%emt 0:00:51] (Nc4) } 20...g4
{ [%eval 17,11] [%emt 0:00:23] (Kc7) } 21.Nba5
{ [%eval 11,12] [%emt 0:00:46] (Bd3) } 21...Nxa5
{ [%eval 22,12] [%emt 0:00:15] (Nxa5) } 22.Nxa5
{ [%eval 7,12] [%emt 0:00:24] (Nxa5) } 22...Kc7
{ [%eval 24,12] [%emt 0:00:29] (gxf3) } 23.Bd3
{ [%eval 9,12] [%emt 0:00:33] (Kf2) } 23...gxf3
{ [%eval 17,11] [%emt 0:00:15] (Rhg8) } 24.gxf3
{ [%eval 0, 12] [%emt 0:00:14] (gxf3) } 24...Rhe8
{ [%eval 20,11] [%emt 0:00:13] (h4) } 25.Rg1
{ [%eval 4,12] [%emt 0:00:47] (Ke2) } 25...h4
{ [%eval 15,10] [%emt 0:00:10] (Nd7) } 26.Rg5
{ [%eval 23,13] [%emt 0:00:56] (Rg5) } 26...Re6
{ [%eval 12,12] [%emt 0:00:18] (Nd7) } 27.Nc4
{ [%eval 27,13] [%emt 0:00:47] (Nc4) } 27...Nd7
{ [%eval 10,11] [%emt 0: 00:09] (Nd7) } 28.b4
{ [%eval 26,13] [%emt 0:00:52] (Ke2) } 28...Rde8
{ [%eval 10,11] [%emt 0:00:13] (Rh8) } 29.a4
{ [%eval 26,12] [%emt 0:00:47] (Nd6) } 29...b6
{ [%eval 20,11] [%emt 0:00:13] (Rh8) } 30.cxb6+
{ [%eval 36,14] [%emt 0:00:55] (cxb6) } 30...Nxb6
{ [%eval 20,12] [%emt 0:00:10] (Nxb6) } 31.Nxb6
{ [%eval 42,14] [%emt 0:00: 52] (Rc1) } 31...Rxb6
{ [%eval 17,13] [%emt 0:00:16] (Rxb6) } 32.Rc1+
{ [%eval 45,14] [%emt 0:00:36] (b5) } 32...Kd6
{ [%eval 16,13] [%emt 0:00:14] (Kd6) } 33.f4
{ [%eval 44,14] [%emt 0:00:48] (b5) } 33...exf4
{ [%eval 22,12] [%emt 0:00:11] (exf4) } 34.Rd5+
{ [%eval 42,14] [%emt 0:00:54] (Rc4) } 34...Ke6
{ [%eval 32,12] [%emt 0:00:10] (Ke7) } 35.Rxd4
{ [%eval 31,14] [%emt 0:00:56] (Rcc5) } 35...Rd6
{ [%eval 32,11] [%emt 0:00: 08] (Rd6) } 36.Rxd6+
{ [%eval 8,16] [%emt 0:00:55] (Rcc4) } 36...Kxd6
{ [%eval 56,13] [%emt 0:00:06] (Kxd6) } 37.Kf2
{ [%eval 0,14] [%emt 0:00:30] (Rc4) } 37...Bxe4
{ [%eval 65,12] [%emt 0:00:05] (Bxe4) } 38.Bxa6
{ [%eval -9,16] [%emt 0:00:50] (Bxa6) } 38...Rg8
{ [%eval 72,12] [%emt 0:00:10] (Rg8) } 39.Bf1
{ [%eval -9,16] [%emt 0:00:39] (Bf1) } 39...Rg3
{ [%eval 75,12] [%emt 0:00:19] (Rg3) } 40.a5
{ [%eval 15,15] [%emt 0:00:15] (Rc8) } 40...Rb3
{ [%eval 70,12] [%emt 0:00:14] (Rb3) } 41.b5
{ [%eval 28,15] [%emt 0:00:32] (b5) } 41...Rb2+
{ [%eval 48,14] [%emt 0:02:41] (Rb2) } 42.Kg1
{ [%eval 27,16] [%emt 0:00:34] (Kg1) } 42...f3
{ [%eval 57,14] [%emt 0:01:15] (f3) } 43.a6
{ [%eval 21,16] [%emt 0:00:31] (a6) } 43...f5
{ [%eval 48,14] [%emt 0:02:00] (f2) } 44.a7
{ [%eval 10,16] [%emt 0:00:27] (a7) } 44...Ra2
{ [%eval 54,14] [%emt 0:00:34] (f2) } 45.b6
{ [%eval 21,16] [%emt 0:00:25] (b6) } 45...f2+
{ [%eval 80,17] [%emt 0:00: 48] (f2) } 46.Kh2
{ [%eval 21,3] [%emt 0:00:00] (Kh2) } 46...Bb7
{ [%eval 76,16] [%emt 0:01:35] (Rb2) } 47.Rd1+
{ [%eval 0,16] [%emt 0:00:27] (Rc7) } 47...Kc5
{ [%eval 112, 17] [%emt 0:01:33] (Kc5) } 48.Rb1
{ [%eval 0,18] [%emt 0:00:47] (Rb1) } 48...f4
{ [%eval 151,16] [%emt 0:01:18] (Kc6) } 49.Rb5+
{ [%eval -146,16] [%emt 0:00:42] (a8=Q) } 49...Kc6
{ [%eval 178,16] [%emt 0:00:54] (Kc6) } 50.Rb1
{ [%eval -181,17] [%emt 0:01:07] (Rb1) } 50...f3
{ [%eval 176,16] [%emt 0:00:25] (f3) } 51.Bb5+
{ [%eval -181,17] [%emt 0:00:34] (Bb5) } 51...Kd5
{ [%eval 175,16] [%emt 0:00:54] (Kd5) } 52.Bf1
{ [%eval -218,16] [%emt 0:00:46] (Bf1) } 52...Kc5
{ [%eval 170,15] [%emt 0:01: 07] (Re2) } 53.a8=Q
{ [%eval -265,17] [%emt 0:01:07] (a8=Q) } 53...Rxa8
{ [%eval 165, 17] [%emt 0:00:38] (Rxa8) } 54.Rb2
{ [%eval -257,18] [%emt 0:00:24] (Rb2) } 54...Ra1
{ [%eval 178,16] [%emt 0:00:38] (Ra1) } 55.Rxf2
{ [%eval -239,17] [%emt 0:00:25] (Rxf2) } 55...Kb4
{ [%eval 181,16] [%emt 0:00:22] (Kd4) } 56.Kg1
{ [%eval -260,18] [%emt 0:00:32] (Kh1) } 56...Kc3
{ [%eval 202,20] [%emt 0:00:21] (Kc3) } 57.Rh2
{ [%eval -280,18] [%emt 0:00:28] (Kh1) } 57...Bd5
{ [%eval 213,22] [%emt 0:01:02] (Bd5) } 58.Rf2
{ [%eval -280,20] [%emt 0:00:28] (Rf2) } 58...Rb1
{ [%eval 213,21] [%emt 0:00: 32] (Rb1) } 59.Kh2
{ [%eval -305,19] [%emt 0:01:21] (Kh2) } 59...Rxb6
{ [%eval 400,21] [%emt 0:02:40] (Rxb6) } 60.Kg1
{ [%eval -346,20] [%emt 0:00:32] (Kg1) } 60...Rb1
{ [%eval 406,20] [%emt 0:01:41] (Rg6) } 61.Kh2
{ [%eval -392,19] [%emt 0:00:33] (Kh2) } 61...Kd4
{ [%eval 406,18] [%emt 0:00:09] (Kd4) } 62.Rd2+
{ [%eval -411,19] [%emt 0:00:25] (Rd2) } 62...Ke5
{ [%eval 406,18] [%emt 0:01:08] (Ke5) } 63.Rf2
{ [%eval -514,19] [%emt 0:00:48] (Rc2) } 63...Be4
{ [%eval 430,15] [%emt 0:00:05] (Be4) } 0-1